[Event "Late-Titled-Tuesday-Blitz-October-17-2023"]
[Site "Chess.com"]
[Date "2023.10.17"]
[Round "4"]
[White "campochess"]
[Black "Laico"]
[Result "1-0"]
[WhiteElo "2198"]
[BlackElo "2427"]
[TimeControl "180+1"]
[EndTime "14:37:13 PDT"]
[Termination "campochess won by checkmate"]

1. e4 {[%clk 0:02:59.8]} 1... e6 {[%clk 0:03:00.6]} 2. Qe2 {[%clk 0:02:58.8]}
2... e5 {[%clk 0:03:00.3]} 3. Nc3 {[%clk 0:02:56.6]} 3... Nc6 {[%clk 0:02:59.7]}
4. Nf3 {[%clk 0:02:54.9]} 4... Bc5 {[%clk 0:02:59.2]} 5. d3 {[%clk 0:02:52.6]}
5... d6 {[%clk 0:02:57.7]} 6. Be3 {[%clk 0:02:52.4]} 6... Bb6 {[%clk 0:02:53.9]}
7. h3 {[%clk 0:02:51.2]} 7... f5 {[%clk 0:02:52.7]} 8. exf5 {[%clk 0:02:45.4]}
8... Bxf5 {[%clk 0:02:53.6]} 9. g4 {[%clk 0:02:41]} 9... Bg6 {[%clk 0:02:50.6]}
10. Bg2 {[%clk 0:02:41]} 10... Nf6 {[%clk 0:02:50.3]} 11. O-O-O {[%clk
0:02:39.4]} 11... Ba5 {[%clk 0:02:44.7]} 12. Ne4 {[%clk 0:02:31]} 12... Nxe4
{[%clk 0:02:38.3]} 13. dxe4 {[%clk 0:02:29.5]} 13... Bxe4 {[%clk 0:02:37.6]} 14.
Bd2 {[%clk 0:02:22.2]} 14... Bxd2+ {[%clk 0:02:33.6]} 15. Rxd2 {[%clk
0:02:21.9]} 15... Bxf3 {[%clk 0:02:25.5]} 16. Qxf3 {[%clk 0:02:20.7]} 16... Qf6
{[%clk 0:02:23.5]} 17. Qb3 {[%clk 0:02:17.1]} 17... Nd8 {[%clk 0:02:19.2]} 18.
Qb5+ {[%clk 0:02:09.5]} 18... c6 {[%clk 0:02:17.8]} 19. Qb3 {[%clk 0:02:09.2]}
19... d5 {[%clk 0:02:10.8]} 20. c4 {[%clk 0:01:59.9]} 20... d4 {[%clk
0:02:09.2]} 21. c5 {[%clk 0:01:59.4]} 21... Qf7 {[%clk 0:01:55.4]} 22. Qg3
{[%clk 0:01:49.7]} 22... Qc4+ {[%clk 0:01:39.2]} 23. Kb1 {[%clk 0:01:46.6]}
23... Qxc5 {[%clk 0:01:36.3]} 24. Rc1 {[%clk 0:01:43.6]} 24... Qd6 {[%clk
0:01:20.4]} 25. Re2 {[%clk 0:01:42.3]} 25... Nf7 {[%clk 0:01:15.8]} 26. f4
{[%clk 0:01:40.8]} 26... O-O {[%clk 0:01:04]} 27. fxe5 {[%clk 0:01:40.8]} 27...
Qg6+ {[%clk 0:01:02.4]} 28. Be4 {[%clk 0:01:38.2]} 28... Qg5 {[%clk 0:00:59.7]}
29. Rce1 {[%clk 0:01:30.1]} 29... Nxe5 {[%clk 0:00:54.3]} 30. Bxh7+ {[%clk
0:01:28.2]} 30... Kxh7 {[%clk 0:00:55.2]} 31. Rxe5 {[%clk 0:01:27.1]} 31... Qg6+
{[%clk 0:00:54.3]} 32. Ka1 {[%clk 0:01:26]} 32... d3 {[%clk 0:00:48.2]} 33. Qh4+
{[%clk 0:01:24.6]} 33... Kg8 {[%clk 0:00:45.7]} 34. Rh5 {[%clk 0:01:23.8]} 34...
d2 {[%clk 0:00:24.5]} 35. Rh8+ {[%clk 0:01:20.2]} 35... Kf7 {[%clk 0:00:24.8]}
36. Re7# {[%clk 0:01:18.6]} 1-0

[Event "Late-Titled-Tuesday-Blitz-October-17-2023"]
[Site "Chess.com"]
[Date "2023.10.17"]
[Round "4"]
[White "wild3000"]
[Black "morte-negra"]
[Result "1-0"]
[WhiteElo "2412"]
[BlackElo "1973"]
[TimeControl "180+1"]
[EndTime "14:37:16 PDT"]
[Termination "wild3000 won by resignation"]

1. d4 {[%clk 0:02:27.9]} 1... Nf6 {[%clk 0:02:56.7]} 2. Nf3 {[%clk 0:02:28.3]}
2... e6 {[%clk 0:02:54.8]} 3. e3 {[%clk 0:02:28.8]} 3... c5 {[%clk 0:02:53.9]}
4. Be2 {[%clk 0:02:29.3]} 4... b6 {[%clk 0:02:53.4]} 5. O-O {[%clk 0:02:29.3]}
5... Be7 {[%clk 0:02:52.4]} 6. c4 {[%clk 0:02:29.7]} 6... cxd4 {[%clk 0:02:52]}
7. exd4 {[%clk 0:02:29.5]} 7... Bb7 {[%clk 0:02:51.9]} 8. Nc3 {[%clk 0:02:29.3]}
8... O-O {[%clk 0:02:50.6]} 9. d5 {[%clk 0:02:28.9]} 9... d6 {[%clk 0:02:47.3]}
10. dxe6 {[%clk 0:02:27.9]} 10... fxe6 {[%clk 0:02:46.6]} 11. Ng5 {[%clk
0:02:28.1]} 11... Qc8 {[%clk 0:02:41.2]} 12. Nb5 {[%clk 0:02:18.6]} 12... h6
{[%clk 0:02:31.9]} 13. Nf3 {[%clk 0:02:07.8]} 13... Qd8 {[%clk 0:02:24.2]} 14.
Nh4 {[%clk 0:02:05.5]} 14... a6 {[%clk 0:02:21.2]} 15. Nd4 {[%clk 0:02:03.4]}
15... Qd7 {[%clk 0:02:00.1]} 16. Ng6 {[%clk 0:02:02.7]} 16... Rf7 {[%clk
0:01:58]} 17. Bg4 {[%clk 0:01:55.1]} 17... Nxg4 {[%clk 0:01:56.8]} 18. Qxg4
{[%clk 0:01:56]} 18... e5 {[%clk 0:01:54]} 19. Ne6 {[%clk 0:01:38.7]} 19... Rf6
{[%clk 0:00:53]} 20. Bxh6 {[%clk 0:01:10.3]} 20... Rxe6 {[%clk 0:00:51]} 21.
Nxe5 {[%clk 0:01:03.4]} 21... Rg6 {[%clk 0:00:29.8]} 22. Qxg6 {[%clk 0:00:56.8]}
1-0

[Event "Late-Titled-Tuesday-Blitz-October-17-2023"]
[Site "Chess.com"]
[Date "2023.10.17"]
[Round "4"]
[White "Predator0608"]
[Black "Nor1lsk"]
[Result "0-1"]
[WhiteElo "2507"]
[BlackElo "2713"]
[TimeControl "180+1"]
[EndTime "14:37:24 PDT"]
[Termination "Nor1lsk won by resignation"]

1. e4 {[%clk 0:03:00.9]} 1... c5 {[%clk 0:03:00]} 2. Nf3 {[%clk 0:03:00.9]} 2...
e6 {[%clk 0:03:00]} 3. d4 {[%clk 0:03:01.3]} 3... cxd4 {[%clk 0:03:00.8]} 4.
Nxd4 {[%clk 0:03:01.7]} 4... Nf6 {[%clk 0:03:01.4]} 5. Nc3 {[%clk 0:03:01.6]}
5... Nc6 {[%clk 0:03:01.7]} 6. Ndb5 {[%clk 0:03:01.7]} 6... Bc5 {[%clk
0:03:01.2]} 7. Bf4 {[%clk 0:02:47.4]} 7... O-O {[%clk 0:03:00.8]} 8. Bc7 {[%clk
0:02:38.5]} 8... Qe7 {[%clk 0:03:00.3]} 9. Bd6 {[%clk 0:02:35.8]} 9... Bxd6
{[%clk 0:03:00.2]} 10. Qxd6 {[%clk 0:02:34.1]} 10... Qd8 {[%clk 0:03:00]} 11.
Nc7 {[%clk 0:02:21]} 11... Rb8 {[%clk 0:02:59.9]} 12. Be2 {[%clk 0:02:11.2]}
12... b5 {[%clk 0:02:59.7]} 13. N7xb5 {[%clk 0:02:03.4]} 13... a6 {[%clk
0:02:58]} 14. Nd4 {[%clk 0:02:03.5]} 14... Nxd4 {[%clk 0:02:38.7]} 15. Qxd4
{[%clk 0:02:04.4]} 15... Rxb2 {[%clk 0:02:38.3]} 16. e5 {[%clk 0:02:04.4]} 16...
Rxc2 {[%clk 0:02:30.8]} 17. exf6 {[%clk 0:01:51.1]} 17... Qa5 {[%clk 0:02:29.5]}
18. fxg7 {[%clk 0:01:34.1]} 18... Re8 {[%clk 0:02:27.4]} 19. O-O {[%clk
0:01:23.6]} 19... Qxc3 {[%clk 0:02:26.9]} 20. Qg4 {[%clk 0:00:58.9]} 20... Qxg7
{[%clk 0:02:25.3]} 21. Qh5 {[%clk 0:00:51.2]} 21... Bb7 {[%clk 0:02:21.3]} 22.
Bf3 {[%clk 0:00:50.1]} 22... Bxf3 {[%clk 0:02:06]} 23. Qxf3 {[%clk 0:00:51]}
23... d5 {[%clk 0:01:59.6]} 24. Qd3 {[%clk 0:00:27]} 24... Rc4 {[%clk
0:01:52.4]} 25. Rae1 {[%clk 0:00:18.4]} 25... Rec8 {[%clk 0:01:50]} 26. Re3
{[%clk 0:00:17.8]} 26... Rg4 {[%clk 0:01:47.9]} 27. Kh1 {[%clk 0:00:13]} 27...
Rcc4 {[%clk 0:01:37]} 28. Rb1 {[%clk 0:00:09.5]} 28... Qg6 {[%clk 0:01:25.9]}
29. Qd2 {[%clk 0:00:06.7]} 29... Qxb1+ {[%clk 0:01:24]} 30. Re1 {[%clk
0:00:03.3]} 30... Qg6 {[%clk 0:01:22.7]} 0-1

[Event "Late-Titled-Tuesday-Blitz-October-17-2023"]
[Site "Chess.com"]
[Date "2023.10.17"]
[Round "4"]
[White "K_A_S_T_O_R"]
[Black "DawidCzerw"]
[Result "1-0"]
[WhiteElo "2864"]
[BlackElo "2556"]
[TimeControl "180+1"]
[EndTime "14:37:26 PDT"]
[Termination "K_A_S_T_O_R won by resignation"]

1. e4 {[%clk 0:03:00.9]} 1... c5 {[%clk 0:02:59.7]} 2. Nf3 {[%clk 0:03:00.4]}
2... Nc6 {[%clk 0:02:59.9]} 3. d4 {[%clk 0:03:00.5]} 3... cxd4 {[%clk
0:03:00.8]} 4. Nxd4 {[%clk 0:03:01.1]} 4... g6 {[%clk 0:03:01.1]} 5. c4 {[%clk
0:03:00.8]} 5... Nf6 {[%clk 0:03:01.4]} 6. Nc3 {[%clk 0:03:00.5]} 6... d6 {[%clk
0:03:01.8]} 7. f3 {[%clk 0:02:59.8]} 7... Nxd4 {[%clk 0:03:01.6]} 8. Qxd4 {[%clk
0:03:00.5]} 8... Bg7 {[%clk 0:03:02.5]} 9. Be3 {[%clk 0:03:00.1]} 9... O-O
{[%clk 0:03:02.8]} 10. Qd2 {[%clk 0:03:00.3]} 10... Be6 {[%clk 0:03:02.7]} 11.
Rc1 {[%clk 0:02:57.8]} 11... Qa5 {[%clk 0:03:02.4]} 12. b3 {[%clk 0:02:57.2]}
12... Rfc8 {[%clk 0:03:01.4]} 13. Nb5 {[%clk 0:02:56.4]} 13... Qxd2+ {[%clk
0:02:53.9]} 14. Kxd2 {[%clk 0:02:57.3]} 14... a6 {[%clk 0:02:53.6]} 15. Nd4
{[%clk 0:02:56.9]} 15... Nd7 {[%clk 0:02:52.6]} 16. Be2 {[%clk 0:02:54.9]} 16...
Ne5 {[%clk 0:02:51.2]} 17. f4 {[%clk 0:02:48.7]} 17... Nc6 {[%clk 0:02:44.4]}
18. Nxe6 {[%clk 0:02:45.3]} 18... fxe6 {[%clk 0:02:44]} 19. Bg4 {[%clk
0:02:45.8]} 19... Kf7 {[%clk 0:02:38.8]} 20. Rhf1 {[%clk 0:02:43.2]} 20... Rf8
{[%clk 0:01:57.6]} 21. Ke2 {[%clk 0:02:16.6]} 21... Bb2 {[%clk 0:01:24.8]} 22.
Rcd1 {[%clk 0:02:10.1]} 22... b5 {[%clk 0:01:10.2]} 23. c5 {[%clk 0:01:54.6]}
23... dxc5 {[%clk 0:01:02]} 24. Bxc5 {[%clk 0:01:53.9]} 24... Rad8 {[%clk
0:01:02]} 25. f5 {[%clk 0:01:39.3]} 25... exf5 {[%clk 0:00:51.4]} 26. exf5
{[%clk 0:01:38.9]} 26... gxf5 {[%clk 0:00:50.3]} 27. Rxf5+ {[%clk 0:01:33.6]}
27... Bf6 {[%clk 0:00:47.3]} 28. Rfd5 {[%clk 0:01:15.7]} 28... Rxd5 {[%clk
0:00:31.2]} 29. Rxd5 {[%clk 0:01:16.2]} 29... Ne5 {[%clk 0:00:24.7]} 30. Bh3
{[%clk 0:01:15.2]} 30... Rc8 {[%clk 0:00:18.4]} 31. Bxc8 {[%clk 0:01:11.8]} 1-0

[Event "Late-Titled-Tuesday-Blitz-October-17-2023"]
[Site "Chess.com"]
[Date "2023.10.17"]
[Round "4"]
[White "Rikikits"]
[Black "ElenGajger"]
[Result "1-0"]
[WhiteElo "2821"]
[BlackElo "2375"]
[TimeControl "180+1"]
[EndTime "14:37:40 PDT"]
[Termination "Rikikits won by resignation"]

1. d4 {[%clk 0:03:00.9]} 1... Nf6 {[%clk 0:02:59.9]} 2. Bf4 {[%clk 0:03:01.1]}
2... g6 {[%clk 0:02:59.5]} 3. Nc3 {[%clk 0:03:01.4]} 3... d5 {[%clk 0:02:59.2]}
4. h4 {[%clk 0:03:01.8]} 4... Bg7 {[%clk 0:02:48.5]} 5. e3 {[%clk 0:03:02.2]}
5... h5 {[%clk 0:02:41.1]} 6. Nf3 {[%clk 0:03:00]} 6... Bg4 {[%clk 0:02:40]} 7.
Be2 {[%clk 0:03:00.4]} 7... Nbd7 {[%clk 0:02:38.3]} 8. Ne5 {[%clk 0:03:00.1]}
8... Bxe2 {[%clk 0:02:38.1]} 9. Qxe2 {[%clk 0:03:01]} 9... Nxe5 {[%clk
0:02:34.3]} 10. dxe5 {[%clk 0:03:01.9]} 10... Ne4 {[%clk 0:02:34.4]} 11. Nxe4
{[%clk 0:02:49.5]} 11... dxe4 {[%clk 0:02:35.3]} 12. Qb5+ {[%clk 0:02:41.4]}
12... Qd7 {[%clk 0:02:33.6]} 13. Qxb7 {[%clk 0:02:41.1]} 13... O-O {[%clk
0:02:32.6]} 14. Qxe4 {[%clk 0:02:40.3]} 14... Qb5 {[%clk 0:02:29.4]} 15. O-O-O
{[%clk 0:02:36.9]} 15... Rab8 {[%clk 0:02:28]} 16. b3 {[%clk 0:02:36.6]} 16...
Rb6 {[%clk 0:02:25.6]} 17. Rd5 {[%clk 0:02:33.3]} 17... c5 {[%clk 0:02:16.4]}
18. Rhd1 {[%clk 0:02:29.2]} 18... Qa6 {[%clk 0:02:03.9]} 19. Qa4 {[%clk
0:02:20.5]} 19... Qe2 {[%clk 0:01:58.7]} 20. R5d2 {[%clk 0:02:15.4]} 20... Qg4
{[%clk 0:01:55.9]} 21. Qxa7 {[%clk 0:02:11.3]} 21... Rc6 {[%clk 0:01:44.7]} 22.
f3 {[%clk 0:01:43.8]} 22... Qxh4 {[%clk 0:01:38.8]} 23. Qb7 {[%clk 0:01:41.2]}
23... Rcc8 {[%clk 0:01:35.1]} 24. Qe4 {[%clk 0:01:24.3]} 24... c4 {[%clk
0:01:27.2]} 25. b4 {[%clk 0:01:19.1]} 25... c3 {[%clk 0:01:25.8]} 26. Rd7 {[%clk
0:01:18.6]} 26... Qf2 {[%clk 0:01:19.3]} 27. b5 {[%clk 0:01:07.3]} 27... Ra8
{[%clk 0:01:01.6]} 28. a4 {[%clk 0:01:06.6]} 28... Qe2 {[%clk 0:00:59.5]} 29.
R7d3 {[%clk 0:00:58.5]} 29... Rfb8 {[%clk 0:00:52.3]} 30. Rxc3 {[%clk
0:00:54.1]} 30... Qxg2 {[%clk 0:00:41.3]} 31. b6 {[%clk 0:00:53.4]} 31... Rc8
{[%clk 0:00:36.8]} 32. b7 {[%clk 0:00:51.8]} 32... Rxc3 {[%clk 0:00:34.9]} 33.
bxa8=Q+ {[%clk 0:00:51.8]} 33... Kh7 {[%clk 0:00:35.8]} 34. Qad5 {[%clk
0:00:46.9]} 34... e6 {[%clk 0:00:34.5]} 35. Qdd4 {[%clk 0:00:43.5]} 1-0

[Event "Late-Titled-Tuesday-Blitz-October-17-2023"]
[Site "Chess.com"]
[Date "2023.10.17"]
[Round "4"]
[White "CarlosjPineror"]
[Black "LuisFSiles"]
[Result "1-0"]
[WhiteElo "2490"]
[BlackElo "2291"]
[TimeControl "180+1"]
[EndTime "14:37:46 PDT"]
[Termination "CarlosjPineror won by resignation"]

1. e4 {[%clk 0:03:00.9]} 1... c5 {[%clk 0:02:58.6]} 2. Nf3 {[%clk 0:03:00.7]}
2... Nc6 {[%clk 0:02:58.8]} 3. d4 {[%clk 0:02:59.7]} 3... cxd4 {[%clk
0:02:59.7]} 4. Nxd4 {[%clk 0:03:00.6]} 4... Nf6 {[%clk 0:02:59.9]} 5. Nc3 {[%clk
0:03:00.9]} 5... e5 {[%clk 0:03:00]} 6. Ndb5 {[%clk 0:03:01.3]} 6... d6 {[%clk
0:03:00.1]} 7. Bg5 {[%clk 0:03:01.3]} 7... a6 {[%clk 0:03:00.4]} 8. Na3 {[%clk
0:03:01.7]} 8... b5 {[%clk 0:03:01.3]} 9. Nd5 {[%clk 0:03:02.2]} 9... Be7 {[%clk
0:03:01.7]} 10. Bxf6 {[%clk 0:03:02.7]} 10... Bxf6 {[%clk 0:03:02.6]} 11. c3
{[%clk 0:03:03.5]} 11... O-O {[%clk 0:03:00.8]} 12. Nc2 {[%clk 0:03:03.9]} 12...
Rb8 {[%clk 0:03:01.1]} 13. Bd3 {[%clk 0:02:55.1]} 13... Bg5 {[%clk 0:03:00.2]}
14. O-O {[%clk 0:02:54.6]} 14... Be6 {[%clk 0:02:57.4]} 15. Nce3 {[%clk
0:02:52.5]} 15... Ne7 {[%clk 0:02:56.4]} 16. Be2 {[%clk 0:02:48.2]} 16... Bxe3
{[%clk 0:02:36.9]} 17. Nxe3 {[%clk 0:02:47.7]} 17... d5 {[%clk 0:02:37.1]} 18.
exd5 {[%clk 0:02:47.1]} 18... Nxd5 {[%clk 0:02:36.8]} 19. Nxd5 {[%clk
0:02:46.8]} 19... Qxd5 {[%clk 0:02:36.5]} 20. Qxd5 {[%clk 0:02:45.3]} 20... Bxd5
{[%clk 0:02:36.2]} 21. Rfd1 {[%clk 0:02:44.3]} 21... Rfd8 {[%clk 0:02:34.6]} 22.
f3 {[%clk 0:02:39.7]} 22... Kf8 {[%clk 0:02:32.9]} 23. Kf2 {[%clk 0:02:39.4]}
23... Ke7 {[%clk 0:02:33]} 24. Rd2 {[%clk 0:02:36.3]} 24... Be6 {[%clk
0:02:30.2]} 25. Rxd8 {[%clk 0:02:29.9]} 25... Rxd8 {[%clk 0:02:29.5]} 26. Ke1
{[%clk 0:02:27.1]} 26... Bc4 {[%clk 0:02:03.5]} 27. a4 {[%clk 0:02:24]} 27...
Bxe2 {[%clk 0:01:38.8]} 28. Kxe2 {[%clk 0:02:22.8]} 28... Rd5 {[%clk 0:01:19.3]}
29. axb5 {[%clk 0:02:11]} 29... axb5 {[%clk 0:01:12.8]} 30. Ra7+ {[%clk
0:02:09.6]} 30... Ke6 {[%clk 0:01:12.8]} 31. Ra6+ {[%clk 0:02:08.6]} 31... Ke7
{[%clk 0:01:07.9]} 32. Rb6 {[%clk 0:02:06.3]} 32... f5 {[%clk 0:01:05.8]} 33. g4
{[%clk 0:02:02.3]} 33... fxg4 {[%clk 0:00:49.4]} 34. fxg4 {[%clk 0:02:03.2]}
34... Rc5 {[%clk 0:00:38.9]} 35. h3 {[%clk 0:01:58.4]} 35... h6 {[%clk
0:00:36.3]} 36. Kd3 {[%clk 0:01:57.6]} 36... Kf7 {[%clk 0:00:21]} 37. b4 {[%clk
0:01:54.4]} 37... Rd5+ {[%clk 0:00:17.5]} 38. Ke4 {[%clk 0:01:47.7]} 38... Rd1
{[%clk 0:00:15]} 39. Rxb5 {[%clk 0:01:42.8]} 39... Rh1 {[%clk 0:00:14.9]} 40.
Rxe5 {[%clk 0:01:38.3]} 40... Rxh3 {[%clk 0:00:15]} 41. Rc5 {[%clk 0:01:38.3]}
41... g5 {[%clk 0:00:11.5]} 42. b5 {[%clk 0:01:37.4]} 42... Rg3 {[%clk
0:00:11.7]} 43. b6 {[%clk 0:01:32.3]} 43... Rxg4+ {[%clk 0:00:11.7]} 44. Ke5
{[%clk 0:01:30.9]} 44... Rg1 {[%clk 0:00:07.6]} 45. Rb5 {[%clk 0:01:30.5]} 1-0

[Event "Late-Titled-Tuesday-Blitz-October-17-2023"]
[Site "Chess.com"]
[Date "2023.10.17"]
[Round "4"]
[White "Tunahan_Makaraci"]
[Black "ural58"]
[Result "0-1"]
[WhiteElo "2337"]
[BlackElo "2514"]
[TimeControl "180+1"]
[EndTime "14:37:51 PDT"]
[Termination "ural58 won by resignation"]

1. e4 {[%clk 0:03:00.9]} 1... d5 {[%clk 0:02:49.7]} 2. exd5 {[%clk 0:03:00.9]}
2... Qxd5 {[%clk 0:02:49.2]} 3. Nc3 {[%clk 0:03:00.9]} 3... Qa5 {[%clk
0:02:48.5]} 4. d4 {[%clk 0:03:00.1]} 4... Nf6 {[%clk 0:02:48.7]} 5. Nf3 {[%clk
0:02:59.4]} 5... Nc6 {[%clk 0:02:48.8]} 6. Bb5 {[%clk 0:02:55]} 6... Ne4 {[%clk
0:02:45]} 7. O-O {[%clk 0:02:51]} 7... Nxc3 {[%clk 0:02:42.1]} 8. Bxc6+ {[%clk
0:02:51]} 8... bxc6 {[%clk 0:02:42.2]} 9. bxc3 {[%clk 0:02:51.9]} 9... Bf5
{[%clk 0:02:41.2]} 10. Bd2 {[%clk 0:02:43.4]} 10... Qa4 {[%clk 0:02:36]} 11. Ne5
{[%clk 0:02:36.8]} 11... Qxc2 {[%clk 0:02:35.3]} 12. Qe2 {[%clk 0:02:33.6]}
12... Qe4 {[%clk 0:02:23.5]} 13. Qc4 {[%clk 0:02:30.1]} 13... Qd5 {[%clk
0:02:23.4]} 14. Qa4 {[%clk 0:02:25.8]} 14... f6 {[%clk 0:02:23.4]} 15. Qxc6+
{[%clk 0:02:20.2]} 15... Qxc6 {[%clk 0:02:23.1]} 16. Nxc6 {[%clk 0:02:21.1]}
16... Kd7 {[%clk 0:02:18.9]} 17. Na5 {[%clk 0:02:20.1]} 17... e6 {[%clk
0:02:16.6]} 18. Rfe1 {[%clk 0:02:19]} 18... Rb8 {[%clk 0:02:15.6]} 19. Nc4
{[%clk 0:02:16.7]} 19... h5 {[%clk 0:02:10.3]} 20. Ne3 {[%clk 0:02:07.8]} 20...
Bd3 {[%clk 0:02:09.1]} 21. c4 {[%clk 0:02:05.3]} 21... Ba3 {[%clk 0:02:05.4]}
22. Bc3 {[%clk 0:02:05]} 22... Bb2 {[%clk 0:02:00.7]} 23. Bxb2 {[%clk
0:02:04.6]} 23... Rxb2 {[%clk 0:02:00.1]} 24. Red1 {[%clk 0:02:04.9]} 24... Bg6
{[%clk 0:01:57.8]} 25. d5 {[%clk 0:02:01.8]} 25... e5 {[%clk 0:01:56.5]} 26. c5
{[%clk 0:01:44.9]} 26... Rhb8 {[%clk 0:01:52.1]} 27. c6+ {[%clk 0:01:41.5]}
27... Ke7 {[%clk 0:01:47.8]} 28. Nc4 {[%clk 0:01:41.4]} 28... Rb1 {[%clk
0:01:42.7]} 29. d6+ {[%clk 0:01:32.5]} 29... cxd6 {[%clk 0:01:42.6]} 30. c7
{[%clk 0:01:19.4]} 30... Rxd1+ {[%clk 0:01:40.6]} 31. Rxd1 {[%clk 0:01:16.6]}
31... Rc8 {[%clk 0:01:41.2]} 32. Nxd6 {[%clk 0:01:12.1]} 32... Rxc7 {[%clk
0:01:39.9]} 33. Nb5 {[%clk 0:01:12.6]} 33... Rb7 {[%clk 0:01:35.9]} 34. a4
{[%clk 0:01:12]} 34... Bc2 {[%clk 0:01:29.5]} 35. Ra1 {[%clk 0:01:08.4]} 35...
a5 {[%clk 0:01:22]} 36. Nc3 {[%clk 0:01:06]} 36... Rb4 {[%clk 0:01:17.8]} 37.
Nd5+ {[%clk 0:01:06.1]} 37... Kd6 {[%clk 0:01:17.2]} 38. Nxb4 {[%clk 0:01:03.4]}
38... axb4 {[%clk 0:01:17.7]} 39. Ra2 {[%clk 0:00:53.6]} 39... b3 {[%clk
0:01:16.9]} 40. Rb2 {[%clk 0:00:53.7]} 40... Kc5 {[%clk 0:01:17]} 41. Kf1 {[%clk
0:00:53.4]} 41... Kb4 {[%clk 0:01:17.2]} 42. Ke2 {[%clk 0:00:50.8]} 42... Kc3
{[%clk 0:01:07.8]} 43. Rxb3+ {[%clk 0:00:20]} 0-1

[Event "Late-Titled-Tuesday-Blitz-October-17-2023"]
[Site "Chess.com"]
[Date "2023.10.17"]
[Round "4"]
[White "Thormento16"]
[Black "Elsa167"]
[Result "0-1"]
[WhiteElo "2344"]
[BlackElo "2812"]
[TimeControl "180+1"]
[EndTime "14:37:52 PDT"]
[Termination "Elsa167 won by resignation"]

1. e4 {[%clk 0:03:00.9]} 1... e6 {[%clk 0:02:59.7]} 2. d4 {[%clk 0:03:00.4]}
2... d5 {[%clk 0:03:00.4]} 3. exd5 {[%clk 0:03:00.6]} 3... exd5 {[%clk
0:03:01.3]} 4. Bd3 {[%clk 0:02:45.1]} 4... Nc6 {[%clk 0:03:01.4]} 5. c3 {[%clk
0:02:29.4]} 5... Bd6 {[%clk 0:03:01.2]} 6. Qf3 {[%clk 0:02:27.4]} 6... Nge7
{[%clk 0:02:49.8]} 7. Ne2 {[%clk 0:02:16.6]} 7... Be6 {[%clk 0:02:47.7]} 8. O-O
{[%clk 0:02:14.2]} 8... Qd7 {[%clk 0:02:46.5]} 9. h3 {[%clk 0:02:13]} 9... O-O-O
{[%clk 0:02:46]} 10. Bf4 {[%clk 0:02:12.8]} 10... g5 {[%clk 0:02:32.5]} 11. Bxg5
{[%clk 0:02:03.5]} 11... Rhg8 {[%clk 0:02:32.9]} 12. Bf4 {[%clk 0:02:00.1]}
12... Bxh3 {[%clk 0:02:31.2]} 13. Ng3 {[%clk 0:01:59.5]} 13... Bg4 {[%clk
0:02:11.8]} 14. Qe3 {[%clk 0:01:30.7]} 14... Rde8 {[%clk 0:02:11.8]} 15. Bxd6
{[%clk 0:01:07.8]} 15... Qxd6 {[%clk 0:02:12.2]} 16. Nd2 {[%clk 0:01:08.6]}
16... h5 {[%clk 0:02:01]} 17. Rfe1 {[%clk 0:01:07.4]} 17... h4 {[%clk
0:02:00.4]} 18. Ne2 {[%clk 0:01:07.1]} 18... Ng6 {[%clk 0:01:49.3]} 19. Qh6
{[%clk 0:01:01.8]} 19... Bxe2 {[%clk 0:01:26.7]} 20. Bxe2 {[%clk 0:00:57]} 20...
Qf4 {[%clk 0:01:25.2]} 21. Qxf4 {[%clk 0:00:53.1]} 21... Nxf4 {[%clk 0:01:26.1]}
22. Bf3 {[%clk 0:00:53.8]} 22... Rxe1+ {[%clk 0:01:18.9]} 23. Rxe1 {[%clk
0:00:54.7]} 23... Nxg2 {[%clk 0:01:09.8]} 24. Bxg2 {[%clk 0:00:55.6]} 24... h3
{[%clk 0:01:10.5]} 25. Nf3 {[%clk 0:00:48.3]} 25... Rxg2+ {[%clk 0:01:10.1]} 26.
Kf1 {[%clk 0:00:48.6]} 26... Rg8 {[%clk 0:01:08.5]} 27. Ke2 {[%clk 0:00:47.4]}
27... Ne7 {[%clk 0:01:02.7]} 28. Rh1 {[%clk 0:00:43.9]} 28... Ng6 {[%clk
0:01:03]} 29. Kd2 {[%clk 0:00:41.3]} 29... Nf4 {[%clk 0:00:56.6]} 30. Ng1 {[%clk
0:00:41.9]} 30... Re8 {[%clk 0:00:45.3]} 31. Nf3 {[%clk 0:00:41.3]} 31... Re2+
{[%clk 0:00:45]} 32. Kd1 {[%clk 0:00:34.4]} 32... Rxb2 {[%clk 0:00:44.4]} 33.
Rh2 {[%clk 0:00:32.4]} 33... Rxa2 {[%clk 0:00:43.7]} 34. Ng5 {[%clk 0:00:30.5]}
34... a5 {[%clk 0:00:39.5]} 35. Nxh3 {[%clk 0:00:28.7]} 35... Nxh3 {[%clk
0:00:39.6]} 36. Rxh3 {[%clk 0:00:29.3]} 36... Rxf2 {[%clk 0:00:40.2]} 0-1

[Event "Late-Titled-Tuesday-Blitz-October-17-2023"]
[Site "Chess.com"]
[Date "2023.10.17"]
[Round "4"]
[White "Eloist"]
[Black "familijatop71"]
[Result "1-0"]
[WhiteElo "2432"]
[BlackElo "2121"]
[TimeControl "180+1"]
[EndTime "14:37:55 PDT"]
[Termination "Eloist won by checkmate"]

1. e4 {[%clk 0:02:54.8]} 1... c5 {[%clk 0:02:59.8]} 2. g3 {[%clk 0:02:53]} 2...
d6 {[%clk 0:02:48.3]} 3. Bg2 {[%clk 0:02:52.4]} 3... g6 {[%clk 0:02:48.2]} 4.
Ne2 {[%clk 0:02:52.3]} 4... Bg7 {[%clk 0:02:48.3]} 5. c3 {[%clk 0:02:52.7]} 5...
e5 {[%clk 0:02:45.3]} 6. d4 {[%clk 0:02:51.9]} 6... cxd4 {[%clk 0:02:44.5]} 7.
cxd4 {[%clk 0:02:51.9]} 7... Nc6 {[%clk 0:02:41.8]} 8. dxe5 {[%clk 0:02:46.9]}
8... dxe5 {[%clk 0:02:28.1]} 9. Qxd8+ {[%clk 0:02:45.8]} 9... Nxd8 {[%clk
0:02:27.1]} 10. Nbc3 {[%clk 0:02:46.1]} 10... Ne7 {[%clk 0:02:17.4]} 11. Be3
{[%clk 0:02:35.6]} 11... O-O {[%clk 0:02:12.5]} 12. Nb5 {[%clk 0:02:30.9]} 12...
Ndc6 {[%clk 0:01:43.7]} 13. O-O-O {[%clk 0:02:22.4]} 13... Be6 {[%clk
0:01:38.4]} 14. Nc7 {[%clk 0:02:20.9]} 14... Rac8 {[%clk 0:01:35.3]} 15. Nxe6
{[%clk 0:02:17.7]} 15... Nd4+ {[%clk 0:01:00.5]} 16. Kb1 {[%clk 0:02:02.6]}
16... Nxe6 {[%clk 0:01:00.1]} 17. Rd7 {[%clk 0:02:00.7]} 17... Nc6 {[%clk
0:00:48.3]} 18. Rxb7 {[%clk 0:01:51.8]} 18... Rb8 {[%clk 0:00:48]} 19. Rxb8
{[%clk 0:01:40.4]} 19... Rxb8 {[%clk 0:00:48.9]} 20. Rc1 {[%clk 0:01:36.8]}
20... Ncd4 {[%clk 0:00:42.2]} 21. Nxd4 {[%clk 0:01:26.1]} 21... exd4 {[%clk
0:00:34.2]} 22. Bd2 {[%clk 0:01:17.5]} 22... Nc5 {[%clk 0:00:22.5]} 23. Rxc5
{[%clk 0:01:12.8]} 23... d3 {[%clk 0:00:20]} 24. e5 {[%clk 0:01:04.1]} 24... f6
{[%clk 0:00:14.1]} 25. Bd5+ {[%clk 0:00:59.2]} 25... Kf8 {[%clk 0:00:13.3]} 26.
e6 {[%clk 0:00:54.5]} 26... f5 {[%clk 0:00:12.2]} 27. Bb3 {[%clk 0:00:45.3]}
27... Rb7 {[%clk 0:00:07.6]} 28. Bg5 {[%clk 0:00:41.6]} 28... a5 {[%clk
0:00:06.1]} 29. Rc8# {[%clk 0:00:41.1]} 1-0